bitfinex-derivatives/quotes_SOLF0:USTF0_20250626
["timestamp","ask_amount","ask_price","bid_price","bid_amount"]
[1750950400293,4.46963166,143.07,142.99,4.46963166]
[1750950400798,6.9881,143.04,143.01,6.9891]
[1750950401503,6.9881,143.04,143.02,6.9888]
[1750950401699,6.9877,143.05,143.02,6.9888]
[1750950402602,6.9872,143.06,143.01,4.46963166]
[1750950402806,40.66963166,143.09,143.01,4.46963166]
[1750950403708,6.9865,143.07,143.04,6.9877]
[1750950404206,6.9865,143.07,143.02,36.2]
[1750950404406,6.987,143.06,143.02,36.2]
[1750950405309,6.9867,143.07,143.04,6.9877]
[1750950406711,4.46963166,143.09,143.04,6.9877]
[1750950406712,6.987,143.06,143.04,6.9877]
[1750950407415,6.9867,143.07,143.04,6.9877]
[1750950410411,6.9867,143.07,143.04,13.4205454]
[1750950411415,6.9867,143.07,143.05,6.4328454]
[1750950411712,36.2,143.14,143.06,6.4328454]
[1750950411917,7.8331791,143.13,143.09,6.46358181]
[1750950412108,12.25175203,143.12,143.09,13.44888181]
[1750950412414,4.46963166,143.13,143.07,6.46358181]
[1750950412611,7.83162118,143.12,143.07,6.46358181]
[1750950412811,45.03609542,143.14,143.07,10.93321347]
[1750950413110,7.83095405,143.13,143.08,6.46358181]
[1750950413310,5.26586131,143.12,143.1,6.9848]
[1750950413511,6.984,143.13,143.1,6.9848]
[1750950413709,5.26436817,143.12,143.1,6.9848]
[1750950413910,6.9841,143.12,143.09,6.9852]
[1750950414414,6.9841,143.12,143.08,6.46358181]
[1750950414921,6.9841,143.12,143.1,6.46358181]
[1750950415418,6.9841,143.12,143.09,13.44878181]
[1750950415808,2.4587,143.18,143.11,4.46963166]
[1750950416013,2.4587,143.18,143.13,6.46358181]
[1750950416412,6.9818,143.17,143.14,6.983]
[1750950416911,6.9814,143.18,143.14,6.9827]
[1750950417106,36.2,143.19,143.14,6.9827]
[1750950418034,6.9819,143.17,143.14,6.9827]
[1750950418210,6.9819,143.17,143.13,4.46963166]
[1750950418211,36.2,143.19,143.13,6.9834]
[1750950418411,9.11993166,143.21,143.14,40.64963166]
[1750950418614,4.46963166,143.23,143.14,42.64358181]
[1750950418918,4.46963166,143.23,143.17,6.9816]
[1750950419116,6.98,143.21,143.17,6.9816]
[1750950419516,4.46963166,143.23,143.17,6.9816]
[1750950419720,6.9801,143.21,143.17,6.9816]
[1750950420423,6.9803,143.2,143.17,6.9816]
[1750950420618,4.46963166,143.28,143.18,40.64963166]
[1750950420917,6.978,143.25,143.21,4.46963166]
[1750950421122,7.04355817,143.28,143.21,4.46963166]
[1750950421317,4.7451,143.3,143.23,4.46963166]
[1750950421724,4.7451,143.3,143.24,6.978]
[1750950422117,11.7207,143.3,143.23,4.46963166]
[1750950422313,11.7207,143.3,143.25,6.9776]
[1750950422520,4.46963166,143.29,143.22,40.64963166]
[1750950422716,3.6303293,143.35,143.24,4.46963166]
[1750950422717,36.18,143.31,143.24,4.46963166]
[1750950423021,36.18,143.31,143.22,36.18]
[1750950423022,4.46963166,143.33,143.26,4.46963166]
[1750950423225,9.81471853,143.33,143.26,40.64963166]
[1750950423528,4.46963166,143.33,143.26,40.64963166]
[1750950424430,40.9237,143.34,143.26,40.64963166]
[1750950424728,45.39333166,143.34,143.26,40.64963166]
[1750950425230,6.9751,143.31,143.26,40.64963166]
[1750950425429,5.33607686,143.36,143.28,4.46963166]
[1750950425632,6.9729,143.35,143.32,4.46963166]
[1750950425825,5.32703161,143.38,143.32,4.46963166]
[1750950426127,5.32703161,143.37,143.3,40.62963166]
[1750950426326,6.9729,143.35,143.3,47.60473166]
[1750950426525,2.3253,143.38,143.3,40.62963166]
[1750950426722,4.46963166,143.33,143.26,40.62963166]
[1750950426924,6.9748,143.31,143.26,40.62963166]
[1750950427524,2.3253,143.38,143.28,4.46963166]
[1750950427726,36.16,143.39,143.33,4.46963166]
[1750950428028,41.47560305,143.39,143.33,4.46963166]
[1750950428529,36.16,143.39,143.33,4.46963166]
[1750950429424,4.46963166,143.37,143.3,40.62963166]
[1750950429836,4.46963166,143.38,143.3,40.62963166]
[1750950430331,5.30749891,143.38,143.3,42.84505673]
[1750950430628,42.84505673,143.39,143.3,42.84505673]
[1750950430830,48.15255564,143.39,143.3,42.84505673]
[1750950431028,42.84505673,143.39,143.3,36.16]
[1750950431228,6.68505673,143.37,143.3,36.16]
[1750950431423,6.68505673,143.35,143.27,36.14]
[1750950431733,6.9764,143.28,143.26,36.14]
[1750950432031,42.82505673,143.33,143.26,36.14]
[1750950432632,36.14,143.33,143.26,36.14]
[1750950432824,5.34661785,143.35,143.27,6.68505673]
[1750950433021,2.4815,143.36,143.29,6.68505673]
[1750950433430,9.16655673,143.36,143.26,36.14]
[1750950433631,9.16655673,143.36,143.27,6.68505673]
[1750950433830,14.50718508,143.36,143.27,6.68505673]
[1750950434026,6.9752,143.31,143.27,6.68505673]
[1750950434430,6.68505673,143.34,143.26,36.14]
[1750950434630,6.9761,143.29,143.26,36.14]
[1750950435232,6.9763,143.28,143.26,36.14]
[1750950435534,5.34062835,143.35,143.26,36.14]
[1750950435733,12.02568508,143.38,143.29,6.68505673]
[1750950436035,5.34062835,143.37,143.3,36.14]
[1750950436232,5.34062835,143.36,143.3,43.1148]
[1750950436543,14.39388508,143.39,143.3,36.14]
[1750950436834,14.39388508,143.39,143.3,38.6236]
[1750950437037,6.9724,143.36,143.32,6.9742]
[1750950437237,6.9724,143.36,143.3,38.6236]
[1750950437437,6.9724,143.36,143.31,6.9746]
[1750950437626,6.9724,143.36,143.3,38.6236]
[1750950438539,6.9721,143.37,143.3,41.0059]
[1750950438742,6.9721,143.37,143.3,43.376]
[1750950439145,6.9724,143.36,143.3,43.376]
[1750950439345,5.32366987,143.38,143.3,43.376]
[1750950439538,9.05325673,143.39,143.3,43.376]
[1750950439735,5.32366837,143.38,143.3,43.376]
[1750950439929,6.9731,143.35,143.31,6.9745]
[1750950440933,6.9731,143.35,143.32,6.9742]
[1750950441644,6.9725,143.36,143.32,6.9742]
[1750950442343,6.9721,143.37,143.3,43.376]
[1750950442536,9.05325673,143.39,143.3,43.376]
[1750950442733,5.36381038,143.38,143.3,43.376]
[1750950442932,12.33581038,143.37,143.33,6.9734]
[1750950443144,6.972,143.37,143.33,6.9734]
[1750950443332,6.972,143.37,143.3,43.376]
[1750950443847,6.9716,143.38,143.34,6.9731]
[1750950444041,5.37767338,143.37,143.34,6.9731]
[1750950444243,2.4531,143.4,143.31,6.68505673]
[1750950444446,6.9717,143.38,143.31,6.68505673]
[1750950444744,5.37914271,143.37,143.31,6.68505673]
[1750950444936,6.9717,143.38,143.31,6.68505673]
[1750950444937,6.9717,143.38,143.34,6.9729]
[1750950445132,5.37903988,143.37,143.34,6.9729]
[1750950445333,6.68505673,143.39,143.32,6.9739]
[1750950445540,5.38151581,143.38,143.3,43.376]
[1750950445740,5.38151581,143.37,143.3,43.376]
[1750950445941,5.38151581,143.36,143.33,6.9735]
[1750950446248,5.38471127,143.35,143.3,43.376]
[1750950446547,6.9722,143.37,143.3,43.376]
[1750950446748,5.38471127,143.36,143.33,6.9735]
[1750950447046,5.38471127,143.35,143.3,43.376]
[1750950447256,6.9722,143.37,143.3,43.376]
[1750950447442,5.38771913,143.36,143.33,6.9735]
[1750950447642,5.38771913,143.35,143.33,6.9735]
[1750950447843,6.9722,143.37,143.33,6.9735]
[1750950448142,12.36036556,143.36,143.33,6.9735]
[1750950448344,5.38786556,143.35,143.33,6.9735]
[1750950448544,6.9725,143.36,143.33,6.9735]
[1750950448744,5.38829177,143.35,143.33,6.9735]
[1750950449043,6.972,143.37,143.34,6.9733]
[1750950449246,5.38829177,143.36,143.32,6.68505673]
[1750950449444,36.14,143.41,143.34,6.68505673]
[1750950449648,12.36122323,143.4,143.37,6.9716]
[1750950449850,6.9706,143.4,143.37,6.9716]
[1750950451949,6.9712,143.39,143.36,6.9721]
[1750950452346,6.9712,143.39,143.35,40.55409823]
[1750950452546,6.9707,143.4,143.35,40.55409823]
[1750950453050,6.9707,143.4,143.36,6.972]
[1750950453252,6.9707,143.4,143.35,40.55409823]
[1750950453756,6.9707,143.4,143.37,6.9716]
[1750950454363,9.24399823,143.43,143.35,40.55409823]
[1750950454558,9.24399823,143.43,143.37,4.45409823]
[1750950454748,6.9697,143.42,143.39,6.9708]
[1750950455250,6.97,143.41,143.38,6.9711]
[1750950456346,2.4491,143.43,143.39,6.9708]
[1750950456550,6.9696,143.42,143.39,6.9708]
[1750950456752,6.9696,143.42,143.36,6.77259823]
[1750950457153,4.45409823,143.43,143.36,6.77259823]
[1750950457551,6.9699,143.41,143.38,6.9711]
[1750950459058,6.9696,143.42,143.39,6.9708]
[1750950459260,36.1,143.44,143.36,6.77259823]
[1750950459557,6.9687,143.44,143.4,6.97]
[1750950459755,4.45409823,143.45,143.4,6.97]
[1750950460156,6.9688,143.44,143.41,6.9696]
[1750950460358,6.9688,143.44,143.39,36.08]
[1750950461153,6.9688,143.44,143.41,6.9696]
[1750950461353,6.969,143.43,143.41,6.9696]
[1750950461553,4.45409823,143.46,143.41,6.9696]
[1750950462162,6.9687,143.44,143.41,6.9696]
[1750950462364,6.9687,143.44,143.39,36.08]
[1750950462365,2.61554522,143.43,143.42,6.9694]
[1750950462759,2.61554522,143.43,143.39,36.08]
[1750950463065,6.969,143.43,143.41,6.9697]
[1750950463561,6.9686,143.44,143.42,6.9694]
[1750950463758,2.62081466,143.43,143.42,6.9694]
[1750950465359,40.53409823,143.5,143.42,4.45409823]
[1750950465563,7.10927649,143.49,143.42,4.45409823]
[1750950465765,6.9673,143.47,143.42,4.45409823]
[1750950465969,7.10927649,143.46,143.44,6.9682]
[1750950466164,2.62953389,143.45,143.4,4.45409823]
[1750950466465,11.57225603,143.44,143.4,6.9701]
[1750950466663,4.45409823,143.44,143.39,36.08]
[1750950466857,2.63298985,143.43,143.39,43.0506]
[1750950467170,4.45409823,143.44,143.39,43.0506]
[1750950467359,2.63345961,143.43,143.39,43.0506]
[1750950467560,4.45409823,143.44,143.39,43.0506]
[1750950467867,6.9698,143.42,143.39,6.9706]
[1750950468563,6.9698,143.42,143.4,6.9703]
[1750950469464,6.9691,143.43,143.41,6.9698]
[1750950469962,6.9695,143.42,143.4,6.9702]
[1750950470165,6.9695,143.42,143.37,36.08]
[1750950470967,6.9699,143.41,143.37,36.08]
[1750950471359,4.45409823,143.44,143.39,6.9706]
[1750950471560,6.9697,143.42,143.39,6.9706]
[1750950472364,4.45409823,143.44,143.38,6.9711]
[1750950472567,4.45409823,143.4,143.34,36.06]
[1750950472865,4.45409823,143.38,143.3,10.95873767]
[1750950473065,4.45409823,143.36,143.3,38.5066]
[1750950473461,6.9736,143.34,143.3,38.5066]
[1750950474063,6.9736,143.34,143.31,6.9745]
[1750950474367,6.9729,143.35,143.3,38.5066]
[1750950474670,4.45409823,143.36,143.3,38.5066]
[1750950474877,6.974,143.33,143.3,38.5066]
[1750950475165,36.06,143.38,143.3,36.06]
[1750950475166,4.45409823,143.34,143.3,36.06]
[1750950475368,4.45409823,143.34,143.27,36.06]
[1750950475570,4.45409823,143.34,143.3,6.975]
[1750950475770,4.45409823,143.34,143.27,36.06]
[1750950475976,6.9743,143.32,143.29,6.9755]
[1750950477365,6.9743,143.32,143.3,6.9752]
[1750950477767,6.9743,143.32,143.28,6.976]
[1750950477967,6.9747,143.32,143.27,36.06]
[1750950478767,40.51409823,143.34,143.27,36.06]
[1750950479075,4.45409823,143.32,143.27,36.06]
[1750950479775,4.45409823,143.3,143.24,36.06]
[1750950480272,11.42969823,143.3,143.27,6.9766]
[1750950481068,6.9758,143.29,143.27,6.9766]
[1750950481780,11.42959823,143.3,143.27,6.9766]
[1750950482074,11.42959823,143.3,143.24,36.06]
[1750950482465,11.42959823,143.3,143.27,6.9764]
[1750950482865,11.42959823,143.3,143.24,36.06]
[1750950483079,6.975,143.31,143.28,6.9759]
[1750950484286,6.9739,143.33,143.3,6.9753]
[1750950484487,4.45409823,143.34,143.27,4.45409823]
[1750950484869,4.45409823,143.34,143.28,36.08]
[1750950485177,6.974,143.33,143.3,6.9749]
[1750950488376,6.974,143.33,143.31,6.9747]
[1750950489285,6.974,143.33,143.3,6.975]
[1750950489784,6.9743,143.32,143.29,6.9755]
[1750950490387,6.9741,143.33,143.3,6.9752]
[1750950490582,4.45409823,143.34,143.3,6.9752]
[1750950490781,4.45409823,143.34,143.29,6.9754]
[1750950490982,6.9745,143.32,143.28,40.53409823]
[1750950491178,4.36461822,143.4,143.28,40.53409823]
[1750950491179,13.9362,143.45,143.28,36.08]
[1750950491380,6.9711,143.39,143.35,4.45409823]
[1750950492078,6.9715,143.38,143.35,4.45409823]
[1750950492586,4.6648,143.41,143.33,36.08]
[1750950492587,4.45409823,143.4,143.33,36.08]
[1750950492987,6.9721,143.37,143.34,6.9729]
[1750950493583,663.72,143.49,143.36,8.90819646]
[1750950493782,11.96937616,143.48,143.41,4.45409823]
[1750950493977,9.36359823,143.48,143.41,4.45409823]
[1750950494183,11.96837283,143.48,143.41,4.45409823]
[1750950494590,6.9672,143.47,143.41,4.45409823]
[1750950495288,11.96837283,143.48,143.41,4.45409823]
[1750950495678,6.967,143.47,143.44,6.9682]
[1750950496187,6.9676,143.46,143.43,6.9687]
[1750950496391,7.5142746,143.48,143.41,6.67516191]
[1750950497288,6.9672,143.47,143.44,6.9682]
[1750950497495,2.3362,143.49,143.44,6.9682]
[1750950497792,6.9674,143.47,143.41,6.67516191]
[1750950498296,2.3362,143.49,143.41,6.67516191]
[1750950498593,36.06,143.5,143.45,6.9678]
[1750950498794,36.06,143.5,143.43,6.67516191]
[1750950499790,6.9668,143.48,143.45,6.9677]
[1750950500786,6.67516191,143.47,143.4,36.08]
[1750950501185,36.06,143.46,143.4,36.08]
[1750950501590,6.67516191,143.45,143.4,36.08]
[1750950501788,6.67516191,143.45,143.37,36.06]
[1750950501991,6.9705,143.4,143.37,36.06]
[1750950502192,6.67516191,143.43,143.37,36.06]
[1750950502397,6.9703,143.41,143.38,6.9713]
[1750950503300,6.9703,143.41,143.37,36.06]
[1750950503696,6.9703,143.41,143.38,6.9711]
[1750950504001,6.9705,143.4,143.38,6.9711]
[1750950504186,6.67516191,143.43,143.37,36.06]
[1750950504397,6.67516191,143.43,143.38,6.9712]
[1750950504693,6.9702,143.41,143.38,6.9712]
[1750950505087,6.9704,143.4,143.37,43.0316]
[1750950506395,6.9709,143.39,143.37,43.0316]
[1750950506598,6.67516191,143.43,143.37,43.0316]
[1750950506990,6.67516191,143.41,143.33,6.67516191]
[1750950507289,6.67516191,143.39,143.34,36.02]
[1750950507491,6.9728,143.36,143.33,6.9735]
[1750950508686,6.9721,143.37,143.34,6.9731]
[1750950510398,4.9302,143.4,143.31,672.74826191]
[1750950510599,4.9302,143.4,143.31,675.10756191]
[1750950510900,2.4764,143.4,143.31,675.10756191]
[1750950511197,36.02,143.42,143.33,6.67516191]
[1750950511498,6.67516191,143.39,143.31,668.4324]
[1750950511887,6.9727,143.36,143.33,6.9737]
[1750950512694,6.972,143.37,143.34,6.9732]
[1750950512898,6.67516191,143.39,143.31,668.4324]
[1750950513099,6.9723,143.37,143.31,40.8724]
[1750950513597,6.9723,143.36,143.33,6.9733]
[1750950514293,36.04,143.38,143.31,38.5131]
[1750950514699,36.04,143.38,143.35,6.9726]
[1750950514894,36.04,143.38,143.31,45.18826191]
[1750950515100,2.4502,143.4,143.31,45.18826191]
[1750950515301,6.9716,143.38,143.35,6.9726]
[1750950515507,2.4502,143.4,143.35,6.9726]
[1750950516002,6.972,143.37,143.34,6.9731]
[1750950517308,6.972,143.37,143.35,6.9728]
[1750950517605,6.972,143.37,143.31,45.18826191]
[1750950518206,6.972,143.37,143.32,4.45579996]
[1750950518408,6.972,143.37,143.31,38.5131]
[1750950518409,2.61168916,143.43,143.36,4.45579996]
[1750950518708,4.7438,143.44,143.38,4.45579996]
[1750950518908,6.9697,143.42,143.38,4.45579996]
[1750950519206,4.7438,143.44,143.38,4.45579996]
[1750950519602,6.9693,143.43,143.39,6.9705]
[1750950519799,6.9693,143.43,143.38,4.45579996]
[1750950519999,6.9693,143.43,143.4,6.9701]
[1750950520504,2.61482697,143.46,143.44,6.9684]
[1750950520711,42.71773555,143.51,143.42,6.67773555]
[1750950521007,45.33143291,143.51,143.46,6.9671]
[1750950521206,42.71773555,143.51,143.46,6.9671]
[1750950521509,36.04,143.51,143.46,6.9671]
[1750950521710,6.9663,143.49,143.46,6.9671]
[1750950522310,36.04,143.51,143.44,6.67773555]
[1750950522515,36.04,143.51,143.45,36.04]
[1750950522809,6.9659,143.5,143.47,6.9666]
[1750950523009,36.04,143.51,143.45,36.04]
[1750950523214,2.61140656,143.52,143.47,6.67773555]
[1750950523513,6.67773555,143.56,143.45,36.04]
[1750950523514,2.60975375,143.56,143.46,4.8996]
[1750950523703,6.67773555,143.55,143.46,4.8996]
[1750950523902,6.9644,143.53,143.49,6.9657]
[1750950524812,6.9647,143.52,143.46,11.57733555]
[1750950525311,6.9653,143.51,143.46,4.8996]
[1750950525709,36.02,143.57,143.48,6.9662]
[1750950526012,2.63340954,143.56,143.49,42.69773555]
[1750950526211,2.63340954,143.58,143.49,42.69773555]
[1750950526402,6.9626,143.57,143.52,6.9642]
[1750950526599,2.63340954,143.58,143.52,6.9642]
[1750950526913,6.9629,143.56,143.53,6.964]
[1750950527312,2.63360469,143.58,143.53,6.964]
[1750950527616,6.67773555,143.59,143.52,6.9643]
[1750950528017,9.31134024,143.59,143.49,42.69773555]
[1750950528216,6.9629,143.56,143.53,6.9638]
[1750950528416,6.67773555,143.59,143.49,42.69773555]
[1750950528813,6.67773555,143.59,143.53,6.9638]
[1750950529518,6.9627,143.56,143.53,6.9638]
[1750950529816,6.9627,143.56,143.52,6.9644]
[1750950530116,6.9627,143.56,143.49,42.69773555]
[1750950530413,6.9627,143.56,143.52,6.9641]
[1750950531726,6.9632,143.55,143.51,6.9648]
[1750950531921,6.9632,143.55,143.49,42.69773555]
[1750950532625,6.67773555,143.57,143.49,36.02]
[1750950532930,42.83773555,143.57,143.49,36.02]
[1750950533428,42.83773555,143.57,143.5,6.9653]
[1750950533732,6.9641,143.53,143.5,6.9653]
[1750950534028,42.83773555,143.57,143.49,42.9858]
[1750950534327,6.9644,143.53,143.49,36.02]
[1750950534715,42.83773555,143.57,143.5,6.9653]
[1750950534912,45.47467945,143.57,143.5,6.9653]
[1750950535115,42.83773555,143.57,143.5,6.9653]
[1750950535316,6.9644,143.53,143.5,6.9653]
[1750950537925,6.67773555,143.55,143.49,42.9859]
[1750950538130,6.67773555,143.55,143.49,36.02]
[1750950538420,6.67773555,143.55,143.46,47.73733555]
[1750950538626,11.31243555,143.55,143.46,47.73733555]
[1750950538820,11.31243555,143.55,143.48,6.9663]
[1750950539216,11.31243555,143.55,143.46,47.73733555]
[1750950539217,6.9653,143.51,143.49,6.966]
[1750950539619,11.31243555,143.55,143.46,47.73733555]
[1750950540320,6.9648,143.52,143.49,6.9657]
[1750950540921,6.9648,143.52,143.5,6.9655]
[1750950541119,6.9648,143.52,143.47,4.44685486]
[1750950541320,6.9648,143.52,143.49,6.9658]
[1750950542934,6.9651,143.51,143.49,6.9658]
[1750950543229,4.44685486,143.54,143.49,6.9658]
[1750950543537,6.9648,143.52,143.49,6.9658]
[1750950543718,4.44685486,143.54,143.49,6.9658]
[1750950543919,4.44685486,143.54,143.48,6.9663]
[1750950544227,6.9653,143.51,143.48,6.9663]
[1750950544422,6.9653,143.51,143.49,6.9659]
[1750950544633,6.9648,143.52,143.49,6.9659]
[1750950549040,6.9651,143.51,143.49,6.9659]
[1750950549337,6.9651,143.51,143.48,6.9663]
[1750950551240,6.9651,143.51,143.49,6.966]
[1750950552043,6.9645,143.53,143.46,45.50645486]
[1750950552248,6.9645,143.53,143.48,4.44685486]
[1750950552537,6.9646,143.52,143.48,4.44685486]
[1750950552742,4.44685486,143.52,143.44,631.72685486]
[1750950552930,4.44685486,143.52,143.44,40.60685486]
[1750950553127,6.9667,143.48,143.45,6.9676]
[1750950553344,4.44685486,143.52,143.44,40.60685486]
[1750950554138,6.9657,143.5,143.47,6.9669]
[1750950555040,6.9653,143.51,143.46,4.44685486]
[1750950555236,36.16,143.53,143.48,4.44685486]
[1750950555534,11.71204287,143.55,143.48,40.60685486]
[1750950555738,9.08155486,143.55,143.48,40.60685486]
[1750950555939,9.08155486,143.55,143.49,6.9657]
[1750950556339,6.9648,143.52,143.49,6.9657]
[1750950556643,6.9648,143.52,143.48,40.60685486]
[1750950557029,6.9642,143.53,143.48,40.60685486]
[1750950557547,11.71415476,143.55,143.48,40.60685486]
[1750950557844,4.44685486,143.53,143.48,36.16]
[1750950558237,6.9655,143.5,143.48,43.1263]
[1750950558542,4.44685486,143.53,143.48,43.1263]
[1750950558742,4.44685486,143.53,143.49,6.966]
[1750950559445,4.44685486,143.53,143.48,43.1263]
[1750950559636,4.44685486,143.51,143.45,36.16]
[1750950559940,6.9663,143.49,143.45,36.16]
[1750950560936,6.9657,143.5,143.47,6.9666]
[1750950561244,4.44685486,143.51,143.47,6.9666]
[1750950561642,6.9656,143.5,143.47,6.9666]
[1750950561946,6.9656,143.5,143.45,40.60685486]
[1750950563342,6.9661,143.49,143.45,40.60685486]
[1750950564254,6.9661,143.49,143.46,6.9671]
[1750950565234,6.9661,143.49,143.47,6.967]
[1750950565441,2.66029073,143.48,143.47,6.967]
[1750950568448,36.16,143.52,143.45,36.16]
[1750950568749,16.55971673,143.51,143.45,36.16]
[1750950568948,6.9668,143.48,143.45,36.16]
[1750950569151,4.44685486,143.51,143.45,43.1277]
[1750950569350,12.11350583,143.5,143.45,43.1277]
[1750950569554,2.65529307,143.49,143.45,36.16]
[1750950569751,2.65529307,143.48,143.42,36.0]
[1750950570050,2.65529307,143.47,143.42,40.44685486]
[1750950570249,2.65529307,143.46,143.42,40.44685486]
[1750950570451,4.44685486,143.49,143.43,6.9686]
[1750950570645,6.9678,143.46,143.42,40.44685486]
[1750950570846,6.9678,143.46,143.43,6.9688]
[1750950571649,6.9674,143.47,143.44,6.9681]
[1750950571947,2.6564277,143.46,143.44,6.9681]
[1750950572143,4.44685486,143.49,143.44,6.9681]
[1750950572350,2.65642939,143.48,143.44,6.9681]
[1750950572555,2.65642939,143.47,143.43,6.9687]
[1750950572742,2.65627041,143.46,143.42,36.0]
[1750950572941,4.44685486,143.49,143.42,36.0]
[1750950573143,6.9682,143.45,143.42,42.969]
[1750950573853,6.9685,143.44,143.42,42.969]
[1750950574052,6.9685,143.44,143.42,36.0]
[1750950574252,6.9685,143.44,143.4,4.44685486]
[1750950574859,6.9685,143.44,143.41,6.9698]
[1750950575851,6.9685,143.44,143.4,4.44685486]
[1750950576454,6.9685,143.44,143.41,6.9695]
[1750950576959,4.44685486,143.47,143.4,4.44685486]
[1750950577158,2.64718136,143.46,143.4,4.44685486]
[1750950577362,4.44685486,143.47,143.4,4.44685486]
[1750950577656,6.9681,143.45,143.42,6.9691]
[1750950578355,4.44685486,143.47,143.39,8.51213767]
[1750950578548,4.44685486,143.41,143.33,8.51213767]
[1750950578858,36.0,143.42,143.36,4.44685486]
[1750950579059,6.9704,143.41,143.36,4.44685486]
[1750950579359,36.0,143.42,143.36,4.44685486]
[1750950579960,6.9707,143.4,143.37,6.9717]
[1750950581256,6.971,143.39,143.36,11.41895486]
[1750950581465,40.44685486,143.42,143.36,11.41895486]
[1750950581754,40.44685486,143.42,143.36,4.44685486]
[1750950581961,40.44685486,143.42,143.35,36.0]
[1750950582158,4.44685486,143.4,143.35,36.0]
[1750950582555,6.9722,143.37,143.35,36.0]
[1750950582756,4.44685486,143.4,143.35,36.0]
[1750950583449,6.9726,143.36,143.34,6.973]
[1750950584062,6.9721,143.37,143.35,6.9727]
[1750950584863,6.9721,143.37,143.34,6.9731]
[1750950587165,6.9724,143.36,143.34,6.9731]
[1750950587358,6.9724,143.36,143.33,6.9735]
[1750950587554,6.9724,143.36,143.32,40.46685486]
[1750950588553,6.9724,143.36,143.33,6.9735]
[1750950589362,6.9724,143.36,143.34,6.9733]
[1750950589759,6.9721,143.37,143.34,6.9733]
[1750950590167,4.44685486,143.4,143.35,6.9727]
[1750950590460,507.69,143.51,143.31,143.7502]
[1750950590461,2.61914491,143.43,143.36,40.46685486]
[1750950590651,4.44685486,143.43,143.36,36.02]
[1750950590857,6.9717,143.38,143.36,36.02]
[1750950591667,6.9717,143.38,143.36,42.9923]
[1750950592973,4.44685486,143.41,143.36,36.02]
[1750950593464,40.46685486,143.41,143.35,6.9725]
[1750950593860,40.46685486,143.41,143.34,136.78]
[1750950594468,40.46685486,143.41,143.35,6.9726]
[1750950596273,6.9718,143.38,143.35,6.9726]
[1750950596666,36.02,143.41,143.34,141.22685486]
[1750950596862,6.9706,143.4,143.36,4.44685486]
[1750950597169,6.9706,143.4,143.38,6.9714]
[1750950597563,4.41262255,143.49,143.39,40.45075945]
[1750950597758,4.44874033,143.51,143.4,137.48]
[1750950597963,4.44874033,143.49,143.41,4.44874033]
[1750950598168,40.44874033,143.51,143.45,6.9675]
[1750950598568,40.44874033,143.51,143.43,4.44874033]
[1750950598771,6.9665,143.49,143.44,6.9682]
[1750950598970,40.44874033,143.51,143.43,4.44874033]
[1750950599171,6.9664,143.49,143.45,6.9677]
[1750950599367,4.44874033,143.5,143.43,40.44874033]
[1750950599967,6.967,143.47,143.44,6.9682]
[1750950600671,4.44874033,143.48,143.43,36.0]
[1750950601173,4.44874033,143.48,143.42,6.9691]
[1750950601566,6.9688,143.44,143.41,11.41844033]
[1750950602479,4.44874033,143.48,143.41,4.44874033]
[1750950603077,6.9679,143.46,143.41,4.44874033]
[1750950603576,6.9672,143.47,143.43,4.44874033]
[1750950603877,4.44874033,143.5,143.43,4.44874033]
[1750950604075,4.44874033,143.5,143.44,6.9682]
[1750950604381,4.44874033,143.5,143.43,4.44874033]
[1750950604580,36.0,143.51,143.45,4.44874033]
[1750950604767,4.44874033,143.5,143.44,36.0]
[1750950604970,4.44874033,143.5,143.41,40.44874033]
[1750950605177,6.9679,143.46,143.43,6.9687]
[1750950606079,4.44874033,143.48,143.42,6.9693]
[1750950606472,6.9684,143.45,143.42,6.9693]
[1750950607082,6.9686,143.44,143.41,42.9696]
[1750950607271,6.9686,143.44,143.41,36.0]